[Event "*** SCC Grand Prix: Titled Tuesday Blitz"]
[Site "Chess.com"]
[Date "2020.07.14"]
[Round "1"]
[White "Falia-p"]
[Black "AnishOnYoutube"]
[Result "0-1"]
[WhiteElo "2421"]
[BlackElo "2846"]
[TimeControl "180+1"]
[EndTime "10:08:04 PDT"]
[Termination "AnishOnYoutube won on time"]

1. e4 {[%clk 0:02:52.1]} 1... c5 {[%clk 0:02:59.8]} 2. Nf3 {[%clk 0:02:50]} 2...
e6 {[%clk 0:03:00.3]} 3. d4 {[%clk 0:02:48.4]} 3... cxd4 {[%clk 0:03:01.2]} 4.
Nxd4 {[%clk 0:02:48]} 4... Nc6 {[%clk 0:03:01.7]} 5. Nc3 {[%clk 0:02:44.1]} 5...
Qc7 {[%clk 0:03:01.9]} 6. Be3 {[%clk 0:02:43.7]} 6... a6 {[%clk 0:03:01.5]} 7.
Qf3 {[%clk 0:02:43.3]} 7... Nf6 {[%clk 0:03:01.1]} 8. O-O-O {[%clk 0:02:42.1]}
8... d6 {[%clk 0:02:52.1]} 9. h3 {[%clk 0:02:35.2]} 9... Nxd4 {[%clk 0:02:38]}
10. Bxd4 {[%clk 0:02:34.5]} 10... e5 {[%clk 0:02:38.7]} 11. Be3 {[%clk
0:02:33.6]} 11... h6 {[%clk 0:02:38.7]} 12. g4 {[%clk 0:02:32.1]} 12... Be6
{[%clk 0:02:38.7]} 13. g5 {[%clk 0:02:29.2]} 13... hxg5 {[%clk 0:02:37.1]} 14.
Bxg5 {[%clk 0:02:30.1]} 14... Be7 {[%clk 0:02:37.6]} 15. Kb1 {[%clk 0:02:15.3]}
15... Rc8 {[%clk 0:02:30.5]} 16. Bd3 {[%clk 0:02:05]} 16... b5 {[%clk
0:02:28.2]} 17. Bxf6 {[%clk 0:01:54.5]} 17... Bxf6 {[%clk 0:02:28.1]} 18. Nd5
{[%clk 0:01:53.3]} 18... Bxd5 {[%clk 0:02:28.1]} 19. exd5 {[%clk 0:01:53.2]}
19... Rh4 {[%clk 0:02:24.7]} 20. Bf5 {[%clk 0:01:45.7]} 20... Rb8 {[%clk
0:02:21.2]} 21. Rhg1 {[%clk 0:01:40]} 21... Ke7 {[%clk 0:02:17.6]} 22. Bg4
{[%clk 0:01:34.9]} 22... Qc4 {[%clk 0:02:11.1]} 23. Qf5 {[%clk 0:01:25.9]} 23...
Rb7 {[%clk 0:02:07.8]} 24. Rg3 {[%clk 0:01:18.6]} 24... b4 {[%clk 0:02:03.6]}
25. Qc8 {[%clk 0:01:11.8]} 25... Rc7 {[%clk 0:01:55.6]} 26. Qf5 {[%clk
0:01:04.9]} 26... g6 {[%clk 0:01:56]} 27. Qd3 {[%clk 0:01:02.2]} 27... a5 {[%clk
0:01:56]} 28. Rf3 {[%clk 0:00:56.1]} 28... Rh8 {[%clk 0:01:45.1]} 29. Re1 {[%clk
0:00:45.5]} 29... Qxd3 {[%clk 0:01:37.8]} 30. Rxd3 {[%clk 0:00:44]} 30... Rc4
{[%clk 0:01:37]} 31. a3 {[%clk 0:00:41.1]} 31... Rb8 {[%clk 0:01:34]} 32. axb4
{[%clk 0:00:39]} 32... Rcxb4 {[%clk 0:01:33.9]} 33. b3 {[%clk 0:00:36.4]} 33...
a4 {[%clk 0:01:34.4]} 34. Bd1 {[%clk 0:00:26.9]} 34... axb3 {[%clk 0:01:32.3]}
35. Rxb3 {[%clk 0:00:26.1]} 35... Rxb3+ {[%clk 0:01:30.8]} 36. cxb3 {[%clk
0:00:26]} 36... Rb5 {[%clk 0:01:31.7]} 37. f4 {[%clk 0:00:22.4]} 37... Rxd5
{[%clk 0:01:31.5]} 38. fxe5 {[%clk 0:00:22.7]} 38... dxe5 {[%clk 0:01:31.1]} 39.
Bc2 {[%clk 0:00:18]} 39... Rd4 {[%clk 0:01:28.5]} 40. Re4 {[%clk 0:00:16.8]}
40... Rd2 {[%clk 0:01:20.8]} 41. b4 {[%clk 0:00:15.2]} 41... Rh2 {[%clk
0:01:08.2]} 42. Re3 {[%clk 0:00:11.8]} 42... Bg7 {[%clk 0:01:02.4]} 43. b5
{[%clk 0:00:10.8]} 43... Rh1+ {[%clk 0:00:58.3]} 44. Ka2 {[%clk 0:00:09.9]}
44... Kd6 {[%clk 0:00:49.3]} 45. b6 {[%clk 0:00:10.1]} 45... f5 {[%clk
0:00:40.7]} 46. Rc3 {[%clk 0:00:07.7]} 46... Ra1+ {[%clk 0:00:19.2]} 47. Kxa1
{[%clk 0:00:06.5]} 47... e4 {[%clk 0:00:19.7]} 48. Kb2 {[%clk 0:00:05.2]} 48...
g5 {[%clk 0:00:19.6]} 49. b7 {[%clk 0:00:02.3]} 49... Bxc3+ {[%clk 0:00:19]} 50.
Kxc3 {[%clk 0:00:03.2]} 50... Kc7 {[%clk 0:00:19.3]} 51. Kd4 {[%clk 0:00:03.7]}
51... Kxb7 {[%clk 0:00:18]} 52. Ke5 {[%clk 0:00:03.9]} 52... g4 {[%clk
0:00:17.4]} 53. h4 {[%clk 0:00:03.4]} 53... g3 {[%clk 0:00:17.6]} 0-1

[Event "*** SCC Grand Prix: Titled Tuesday Blitz"]
[Site "Chess.com"]
[Date "2020.07.14"]
[Round "1"]
[White "shineatchess"]
[Black "GianmarcoVaR"]
[Result "0-1"]
[WhiteElo "2195"]
[BlackElo "2525"]
[TimeControl "180+1"]
[EndTime "10:08:06 PDT"]
[Termination "GianmarcoVaR won by checkmate"]

1. e4 {[%clk 0:02:37.7]} 1... c6 {[%clk 0:02:39.1]} 2. Nc3 {[%clk 0:02:36]} 2...
d5 {[%clk 0:02:38.9]} 3. Nf3 {[%clk 0:02:35.4]} 3... dxe4 {[%clk 0:02:31.1]} 4.
Nxe4 {[%clk 0:02:36.3]} 4... Nf6 {[%clk 0:02:30.9]} 5. Qe2 {[%clk 0:02:34.2]}
5... Nxe4 {[%clk 0:02:29.8]} 6. Qxe4 {[%clk 0:02:34]} 6... Qa5 {[%clk
0:02:28.9]} 7. b4 {[%clk 0:02:25.2]} 7... Qf5 {[%clk 0:02:25.7]} 8. Bd3 {[%clk
0:02:22.6]} 8... Qxe4+ {[%clk 0:02:17.1]} 9. Bxe4 {[%clk 0:02:23]} 9... Nd7
{[%clk 0:02:17.3]} 10. d4 {[%clk 0:02:16.2]} 10... Nf6 {[%clk 0:02:05.8]} 11.
Bd3 {[%clk 0:02:15.5]} 11... Nd5 {[%clk 0:02:04.4]} 12. Bd2 {[%clk 0:02:14.4]}
12... g6 {[%clk 0:01:47.6]} 13. c4 {[%clk 0:02:12.7]} 13... Nf6 {[%clk
0:01:46.4]} 14. O-O {[%clk 0:02:09.9]} 14... Bg7 {[%clk 0:01:46.8]} 15. Rfe1
{[%clk 0:02:06.3]} 15... Bg4 {[%clk 0:01:37.7]} 16. Ne5 {[%clk 0:02:06]} 16...
Be6 {[%clk 0:01:37.1]} 17. Rac1 {[%clk 0:01:58.6]} 17... O-O {[%clk 0:01:35.5]}
18. h3 {[%clk 0:01:55.5]} 18... Rfd8 {[%clk 0:01:32.4]} 19. Be3 {[%clk
0:01:48.3]} 19... a5 {[%clk 0:01:24.5]} 20. a3 {[%clk 0:01:48.1]} 20... axb4
{[%clk 0:01:23.1]} 21. axb4 {[%clk 0:01:49]} 21... Ra3 {[%clk 0:01:00.5]} 22.
Bf1 {[%clk 0:01:47.9]} 22... Nd7 {[%clk 0:01:00.1]} 23. Nxd7 {[%clk 0:01:42.4]}
23... Bxd7 {[%clk 0:00:59]} 24. d5 {[%clk 0:01:35.7]} 24... cxd5 {[%clk
0:00:42.5]} 25. cxd5 {[%clk 0:01:34.2]} 25... Bc3 {[%clk 0:00:42.9]} 26. Red1
{[%clk 0:01:29]} 26... Bxb4 {[%clk 0:00:43.3]} 27. Rc7 {[%clk 0:01:28.6]} 27...
b5 {[%clk 0:00:30]} 28. Rb7 {[%clk 0:01:22.3]} 28... Bd6 {[%clk 0:00:25.7]} 29.
Bb6 {[%clk 0:01:21.2]} 29... Rb8 {[%clk 0:00:26.2]} 30. Rxd7 {[%clk 0:01:10.6]}
30... Rxb6 {[%clk 0:00:25.8]} 31. Rd8+ {[%clk 0:01:09.9]} 31... Kg7 {[%clk
0:00:26.1]} 32. Rb1 {[%clk 0:01:10.8]} 32... b4 {[%clk 0:00:25.2]} 33. Rc8
{[%clk 0:00:59.2]} 33... b3 {[%clk 0:00:22.9]} 34. Rc6 {[%clk 0:00:59.3]} 34...
Rb4 {[%clk 0:00:21.6]} 35. Rc4 {[%clk 0:00:58.6]} 35... Raa4 {[%clk 0:00:19.4]}
36. Rxb4 {[%clk 0:00:55.2]} 36... Rxb4 {[%clk 0:00:19.9]} 37. Bd3 {[%clk
0:00:48.9]} 37... Kf6 {[%clk 0:00:20.2]} 38. g3 {[%clk 0:00:47.8]} 38... h5
{[%clk 0:00:19.2]} 39. f4 {[%clk 0:00:47]} 39... b2 {[%clk 0:00:19.4]} 40. h4
{[%clk 0:00:45.3]} 40... Rb3 {[%clk 0:00:17.4]} 41. Bc2 {[%clk 0:00:44.2]} 41...
Rxg3+ {[%clk 0:00:17.6]} 42. Kf2 {[%clk 0:00:43.9]} 42... Rg4 {[%clk 0:00:16.8]}
43. Rxb2 {[%clk 0:00:43.4]} 43... Rxf4+ {[%clk 0:00:17.3]} 44. Ke3 {[%clk
0:00:43.2]} 44... Rxh4 {[%clk 0:00:17.6]} 45. Bd3 {[%clk 0:00:41.8]} 45... Ke5
{[%clk 0:00:17.7]} 46. Rf2 {[%clk 0:00:39.3]} 46... Bc5+ {[%clk 0:00:17.6]} 47.
Ke2 {[%clk 0:00:38.4]} 47... Bxf2 {[%clk 0:00:18]} 48. Kxf2 {[%clk 0:00:39.3]}
48... Kxd5 {[%clk 0:00:18.3]} 49. Kg3 {[%clk 0:00:39.2]} 49... Rb4 {[%clk
0:00:18.1]} 50. Be2 {[%clk 0:00:38.7]} 50... Ke5 {[%clk 0:00:18.1]} 51. Bf3
{[%clk 0:00:39.6]} 51... Kf5 {[%clk 0:00:18.2]} 52. Kf2 {[%clk 0:00:40.1]} 52...
Kf4 {[%clk 0:00:18]} 53. Bc6 {[%clk 0:00:39.1]} 53... Rb2+ {[%clk 0:00:16.9]}
54. Ke1 {[%clk 0:00:38.9]} 54... Ke3 {[%clk 0:00:16.8]} 55. Kd1 {[%clk 0:00:39]}
55... Kd3 {[%clk 0:00:16.9]} 56. Kc1 {[%clk 0:00:38.4]} 56... Rc2+ {[%clk
0:00:17.1]} 57. Kb1 {[%clk 0:00:38.3]} 57... Rxc6 {[%clk 0:00:17.3]} 58. Kb2
{[%clk 0:00:38.1]} 58... Rb6+ {[%clk 0:00:17.7]} 59. Ka3 {[%clk 0:00:37.8]}
59... Kc4 {[%clk 0:00:18.1]} 60. Ka4 {[%clk 0:00:38.7]} 60... Ra6# {[%clk
0:00:18]} 0-1

[Event "*** SCC Grand Prix: Titled Tuesday Blitz"]
[Site "Chess.com"]
[Date "2020.07.14"]
[Round "1"]
[White "LastHeroJr"]
[Black "GeorgMeier"]
[Result "0-1"]
[WhiteElo "2440"]
[BlackElo "2963"]
[TimeControl "180+1"]
[EndTime "10:08:08 PDT"]
[Termination "GeorgMeier won on time"]

1. e4 {[%clk 0:02:59.2]} 1... e6 {[%clk 0:02:44]} 2. d4 {[%clk 0:02:58.3]} 2...
d5 {[%clk 0:02:24.2]} 3. Nd2 {[%clk 0:02:58.6]} 3... dxe4 {[%clk 0:02:18.5]} 4.
Nxe4 {[%clk 0:02:58.2]} 4... Nd7 {[%clk 0:02:19.4]} 5. Nf3 {[%clk 0:02:55.8]}
5... Ngf6 {[%clk 0:02:12.9]} 6. Nxf6+ {[%clk 0:02:55.5]} 6... Nxf6 {[%clk
0:02:03.3]} 7. Bd3 {[%clk 0:02:55.3]} 7... c5 {[%clk 0:02:03]} 8. O-O {[%clk
0:02:51.1]} 8... cxd4 {[%clk 0:02:02.9]} 9. Nxd4 {[%clk 0:02:50.9]} 9... Bc5
{[%clk 0:02:03.4]} 10. Be3 {[%clk 0:02:46.6]} 10... Bb6 {[%clk 0:02:02.6]} 11.
c3 {[%clk 0:02:27.2]} 11... O-O {[%clk 0:02:02.1]} 12. Qc2 {[%clk 0:02:09.8]}
12... e5 {[%clk 0:01:58.6]} 13. Nf3 {[%clk 0:01:55.7]} 13... Bxe3 {[%clk
0:01:33.7]} 14. fxe3 {[%clk 0:01:56.6]} 14... Qe7 {[%clk 0:01:27.6]} 15. Ng5
{[%clk 0:01:53.3]} 15... h6 {[%clk 0:01:27.5]} 16. Rxf6 {[%clk 0:01:16.9]} 16...
Qxf6 {[%clk 0:00:50.7]} 17. Nh7 {[%clk 0:01:13.7]} 17... Qb6 {[%clk 0:00:50.8]}
18. Nxf8 {[%clk 0:01:06.6]} 18... Qxe3+ {[%clk 0:00:50.6]} 19. Kh1 {[%clk
0:01:04.2]} 19... Kxf8 {[%clk 0:00:51.1]} 20. Be4 {[%clk 0:00:59.7]} 20... Be6
{[%clk 0:00:44.4]} 21. Bxb7 {[%clk 0:00:57.6]} 21... Rd8 {[%clk 0:00:44.5]} 22.
Rd1 {[%clk 0:00:34.8]} 22... Rxd1+ {[%clk 0:00:43.7]} 23. Qxd1 {[%clk
0:00:35.7]} 23... Ke7 {[%clk 0:00:44.4]} 24. Bf3 {[%clk 0:00:34]} 24... f5
{[%clk 0:00:43.9]} 25. a3 {[%clk 0:00:25.8]} 25... g5 {[%clk 0:00:35.9]} 26. h3
{[%clk 0:00:22.9]} 26... e4 {[%clk 0:00:28.6]} 27. Bh5 {[%clk 0:00:19.7]} 27...
f4 {[%clk 0:00:18]} 28. Bg4 {[%clk 0:00:14.4]} 28... Qd3 {[%clk 0:00:09.9]} 29.
Qxd3 {[%clk 0:00:08.4]} 29... exd3 {[%clk 0:00:09.9]} 30. Bd1 {[%clk 0:00:08.6]}
30... Kd6 {[%clk 0:00:09.3]} 31. Kg1 {[%clk 0:00:08.8]} 31... Bd5 {[%clk
0:00:07.5]} 32. Kf2 {[%clk 0:00:08.7]} 32... a5 {[%clk 0:00:07.1]} 33. g3 {[%clk
0:00:08.4]} 33... Kc5 {[%clk 0:00:06.2]} 34. h4 {[%clk 0:00:05.4]} 34... Kc4
{[%clk 0:00:05]} 35. hxg5 {[%clk 0:00:05.5]} 35... hxg5 {[%clk 0:00:05.9]} 36.
gxf4 {[%clk 0:00:06.4]} 36... gxf4 {[%clk 0:00:06.2]} 37. Ke1 {[%clk 0:00:04.9]}
37... Bc6 {[%clk 0:00:05.7]} 38. Kd2 {[%clk 0:00:03]} 38... Be4 {[%clk
0:00:05.4]} 39. Bg4 {[%clk 0:00:02.5]} 39... Kc5 {[%clk 0:00:04.1]} 40. b3
{[%clk 0:00:01.8]} 40... Kb5 {[%clk 0:00:03.2]} 41. c4+ {[%clk 0:00:01.7]} 41...
Kc5 {[%clk 0:00:03.4]} 42. Bh5 {[%clk 0:00:02.2]} 42... a4 {[%clk 0:00:02.8]}
43. bxa4 {[%clk 0:00:01.9]} 43... Kxc4 {[%clk 0:00:03.7]} 44. a5 {[%clk
0:00:02.8]} 44... Kb5 {[%clk 0:00:04]} 45. a6 {[%clk 0:00:03.7]} 45... Kxa6
{[%clk 0:00:04.3]} 46. Bf7 {[%clk 0:00:03.8]} 46... Kb5 {[%clk 0:00:04.5]} 47.
Be8+ {[%clk 0:00:04.1]} 47... Kc4 {[%clk 0:00:04.4]} 48. Ba4 {[%clk 0:00:03.9]}
48... Kd4 {[%clk 0:00:03]} 49. Bb5 {[%clk 0:00:03]} 49... f3 {[%clk 0:00:03]}
50. Ke1 {[%clk 0:00:01.4]} 50... Ke3 {[%clk 0:00:02.9]} 51. Kd1 {[%clk
0:00:01.7]} 51... f2 {[%clk 0:00:03.3]} 52. Bxd3 {[%clk 0:00:02.5]} 52... Bxd3
{[%clk 0:00:03.8]} 53. Kc1 {[%clk 0:00:03.4]} 53... f1=Q+ {[%clk 0:00:04.4]} 0-1

[Event "*** SCC Grand Prix: Titled Tuesday Blitz"]
[Site "Chess.com"]
[Date "2020.07.14"]
[Round "1"]
[White "K-Nygren"]
[Black "Joseacorrea"]
[Result "1-0"]
[WhiteElo "2460"]
[BlackElo "1944"]
[TimeControl "180+1"]
[EndTime "10:08:10 PDT"]
[Termination "K-Nygren won on time"]

1. e4 {[%clk 0:03:00.7]} 1... c5 {[%clk 0:02:59.2]} 2. Nf3 {[%clk 0:03:00.5]}
2... g6 {[%clk 0:02:59.3]} 3. c3 {[%clk 0:03:00.1]} 3... d5 {[%clk 0:02:58]} 4.
exd5 {[%clk 0:02:51.6]} 4... Qxd5 {[%clk 0:02:58.9]} 5. Be2 {[%clk 0:02:51.4]}
5... Bg7 {[%clk 0:02:57.5]} 6. O-O {[%clk 0:02:50.9]} 6... Nf6 {[%clk
0:02:57.9]} 7. d4 {[%clk 0:02:50.5]} 7... cxd4 {[%clk 0:02:57.5]} 8. Nxd4 {[%clk
0:02:48.2]} 8... O-O {[%clk 0:02:54.2]} 9. Bf3 {[%clk 0:02:47.9]} 9... Qd7
{[%clk 0:02:51.8]} 10. Qc2 {[%clk 0:02:41.6]} 10... e5 {[%clk 0:02:47.5]} 11.
Nb3 {[%clk 0:02:40.1]} 11... Qf5 {[%clk 0:02:42]} 12. Qxf5 {[%clk 0:02:37.7]}
12... gxf5 {[%clk 0:02:42.9]} 13. Bg5 {[%clk 0:02:32.1]} 13... e4 {[%clk
0:02:39.7]} 14. Be2 {[%clk 0:02:31.8]} 14... Nc6 {[%clk 0:02:39.5]} 15. N1d2
{[%clk 0:02:29.2]} 15... Be6 {[%clk 0:02:34]} 16. Nc5 {[%clk 0:02:27.9]} 16...
b6 {[%clk 0:02:29.6]} 17. Nxe6 {[%clk 0:02:16.2]} 17... fxe6 {[%clk 0:02:27.2]}
18. Bc4 {[%clk 0:02:17.1]} 18... Nd5 {[%clk 0:02:22.9]} 19. f3 {[%clk
0:02:13.2]} 19... exf3 {[%clk 0:02:07.8]} 20. Nxf3 {[%clk 0:02:12.6]} 20... Ne5
{[%clk 0:01:56.6]} 21. Nxe5 {[%clk 0:02:10.7]} 21... Bxe5 {[%clk 0:01:57.5]} 22.
Rae1 {[%clk 0:02:10.1]} 22... Bf6 {[%clk 0:01:53.3]} 23. Rxe6 {[%clk 0:01:59.3]}
23... Bxg5 {[%clk 0:01:46]} 24. Bxd5 {[%clk 0:01:58.7]} 24... Rad8 {[%clk
0:01:32.3]} 25. Re5+ {[%clk 0:01:52.3]} 25... Kg7 {[%clk 0:01:28]} 26. Rfxf5
{[%clk 0:01:44.1]} 26... Bf6 {[%clk 0:01:18.5]} 27. Re3 {[%clk 0:01:35.6]} 27...
Bd4 {[%clk 0:01:17.7]} 28. Rg5+ {[%clk 0:01:12.3]} 28... Kf6 {[%clk 0:01:08.2]}
29. cxd4 {[%clk 0:01:09.1]} 29... Kxg5 {[%clk 0:01:07]} 30. Bf3 {[%clk
0:01:05.8]} 30... Rfe8 {[%clk 0:00:57.4]} 31. Rd3 {[%clk 0:01:04.9]} 31... Kf5
{[%clk 0:00:50.1]} 32. d5 {[%clk 0:01:04.5]} 32... Ke5 {[%clk 0:00:48.7]} 33. h3
{[%clk 0:01:03.1]} 33... Kd6 {[%clk 0:00:47.6]} 34. Kh2 {[%clk 0:01:02.5]} 34...
Re5 {[%clk 0:00:44.6]} 35. Rd4 {[%clk 0:01:02.2]} 35... Rf8 {[%clk 0:00:40.9]}
36. Rh4 {[%clk 0:01:00.8]} 36... Rf7 {[%clk 0:00:38.8]} 37. Kg3 {[%clk 0:00:59]}
37... Rg5+ {[%clk 0:00:36.2]} 38. Kh2 {[%clk 0:00:51.9]} 38... h5 {[%clk
0:00:30.9]} 39. Rc4 {[%clk 0:00:48.6]} 39... Rc7 {[%clk 0:00:29]} 40. Rf4 {[%clk
0:00:45.6]} 40... Rc2 {[%clk 0:00:24.7]} 41. Rf6+ {[%clk 0:00:44.6]} 41... Ke5
{[%clk 0:00:22]} 42. Re6+ {[%clk 0:00:43.5]} 42... Kd4 {[%clk 0:00:21.8]} 43. d6
{[%clk 0:00:38.5]} 43... Rg8 {[%clk 0:00:11.3]} 44. d7 {[%clk 0:00:34.9]} 44...
Rd8 {[%clk 0:00:10.7]} 45. Bc6 {[%clk 0:00:24.8]} 45... Rxc6 {[%clk 0:00:05]}
46. Rxc6 {[%clk 0:00:24.3]} 46... Rxd7 {[%clk 0:00:05.9]} 47. Rc2 {[%clk
0:00:23.3]} 47... Kd3 {[%clk 0:00:05.1]} 48. Rf2 {[%clk 0:00:22.6]} 48... Rh7
{[%clk 0:00:02]} 49. Kg3 {[%clk 0:00:22]} 49... Ke3 {[%clk 0:00:01.6]} 50. Rf3+
{[%clk 0:00:21.7]} 50... Ke4 {[%clk 0:00:01.7]} 51. Kh4 {[%clk 0:00:21]} 1-0

[Event "*** SCC Grand Prix: Titled Tuesday Blitz"]
[Site "Chess.com"]
[Date "2020.07.14"]
[Round "1"]
[White "QueenOfTactics90"]
[Black "Kopytkin"]
[Result "0-1"]
[WhiteElo "2001"]
[BlackElo "2469"]
[TimeControl "180+1"]
[EndTime "10:08:11 PDT"]
[Termination "Kopytkin won on time"]

1. e4 {[%clk 0:03:00.9]} 1... Nf6 {[%clk 0:02:57.4]} 2. e5 {[%clk 0:02:59.6]}
2... Nd5 {[%clk 0:02:57.4]} 3. c4 {[%clk 0:03:00.5]} 3... Nb6 {[%clk 0:02:56.9]}
4. d4 {[%clk 0:03:01.4]} 4... d6 {[%clk 0:02:56.9]} 5. f4 {[%clk 0:03:02.1]}
5... dxe5 {[%clk 0:02:57.1]} 6. fxe5 {[%clk 0:03:03]} 6... c5 {[%clk 0:02:57.6]}
7. Nf3 {[%clk 0:02:51.5]} 7... cxd4 {[%clk 0:02:52.1]} 8. Qxd4 {[%clk
0:02:48.4]} 8... Qxd4 {[%clk 0:02:24.5]} 9. Nxd4 {[%clk 0:02:49.3]} 9... Nc6
{[%clk 0:02:24.8]} 10. Nxc6 {[%clk 0:02:39.6]} 10... bxc6 {[%clk 0:02:25.7]} 11.
Nc3 {[%clk 0:02:34.4]} 11... e6 {[%clk 0:02:21.1]} 12. Be3 {[%clk 0:02:22.5]}
12... Bb4 {[%clk 0:02:19.8]} 13. O-O-O {[%clk 0:02:12.5]} 13... O-O {[%clk
0:02:17.7]} 14. Be2 {[%clk 0:02:03.2]} 14... Bb7 {[%clk 0:02:11.6]} 15. Ne4
{[%clk 0:01:55.4]} 15... Rfd8 {[%clk 0:02:03.3]} 16. c5 {[%clk 0:01:47.2]} 16...
Nd5 {[%clk 0:02:00.1]} 17. Bd4 {[%clk 0:01:47.1]} 17... Nf4 {[%clk 0:01:43.2]}
18. Bf3 {[%clk 0:01:46.8]} 18... Ba6 {[%clk 0:01:30.7]} 19. Nd6 {[%clk 0:01:23]}
19... Nd5 {[%clk 0:01:05.1]} 20. a3 {[%clk 0:01:20.3]} 20... Ba5 {[%clk
0:01:04.5]} 21. b4 {[%clk 0:01:11.2]} 21... Bc7 {[%clk 0:01:04.5]} 22. Bxd5
{[%clk 0:01:03]} 22... exd5 {[%clk 0:01:02.7]} 23. Rd2 {[%clk 0:00:58.2]} 23...
Bc8 {[%clk 0:00:53.5]} 24. Rf2 {[%clk 0:00:56.7]} 24... Be6 {[%clk 0:00:53.6]}
25. Kd2 {[%clk 0:00:50.3]} 25... Rdb8 {[%clk 0:00:51.9]} 26. Kc3 {[%clk
0:00:50.4]} 26... a5 {[%clk 0:00:51.5]} 27. Rb1 {[%clk 0:00:34.6]} 27... axb4+
{[%clk 0:00:51]} 28. axb4 {[%clk 0:00:34.1]} 28... Ra3+ {[%clk 0:00:50.6]} 29.
Rb3 {[%clk 0:00:33]} 29... Ra4 {[%clk 0:00:47.9]} 30. h3 {[%clk 0:00:30.1]}
30... h6 {[%clk 0:00:47.2]} 31. b5 {[%clk 0:00:26.7]} 31... Ba5+ {[%clk
0:00:39.2]} 32. Kd3 {[%clk 0:00:22]} 32... cxb5 {[%clk 0:00:38.6]} 33. Nxb5
{[%clk 0:00:20.6]} 33... Bd8 {[%clk 0:00:36]} 34. Rfb2 {[%clk 0:00:18.9]} 34...
Rba8 {[%clk 0:00:33.7]} 35. Nd6 {[%clk 0:00:18.8]} 35... Ra3 {[%clk 0:00:28.8]}
36. c6 {[%clk 0:00:18.6]} 36... Bc7 {[%clk 0:00:27.1]} 37. Nb5 {[%clk
0:00:18.1]} 37... Rxb3+ {[%clk 0:00:26.1]} 38. Rxb3 {[%clk 0:00:19]} 38... Rc8
{[%clk 0:00:23.8]} 39. Rc3 {[%clk 0:00:15]} 39... Ba5 {[%clk 0:00:22.9]} 40. Nd6
{[%clk 0:00:12]} 40... Bxc3 {[%clk 0:00:21.7]} 41. Nxc8 {[%clk 0:00:11.8]} 41...
Bxc8 {[%clk 0:00:21.7]} 42. Bxc3 {[%clk 0:00:11.1]} 42... Kf8 {[%clk 0:00:22.1]}
43. Kd4 {[%clk 0:00:11.1]} 43... Be6 {[%clk 0:00:22.1]} 44. Kc5 {[%clk
0:00:11.4]} 44... Ke7 {[%clk 0:00:22.2]} 45. Kb6 {[%clk 0:00:10.7]} 45... Kd8
{[%clk 0:00:18.1]} 46. Kb7 {[%clk 0:00:10.5]} 46... Bc8+ {[%clk 0:00:17.9]} 47.
Kb8 {[%clk 0:00:10.3]} 47... Bf5 {[%clk 0:00:17]} 48. Ba5+ {[%clk 0:00:10.1]}
48... Ke7 {[%clk 0:00:16.7]} 49. c7 {[%clk 0:00:10.4]} 49... d4 {[%clk
0:00:17.1]} 50. c8=Q {[%clk 0:00:09.3]} 50... Bxc8 {[%clk 0:00:16.6]} 51. Kxc8
{[%clk 0:00:10.2]} 51... Ke6 {[%clk 0:00:17]} 52. Kc7 {[%clk 0:00:09.8]} 52...
Kxe5 {[%clk 0:00:17.3]} 53. Kc6 {[%clk 0:00:09.8]} 53... f5 {[%clk 0:00:16.5]}
54. Kc5 {[%clk 0:00:09.7]} 54... Ke4 {[%clk 0:00:17]} 55. Bd2 {[%clk 0:00:03.6]}
55... g5 {[%clk 0:00:17]} 56. Kc4 {[%clk 0:00:03.1]} 56... f4 {[%clk 0:00:17.4]}
0-1

[Event "*** SCC Grand Prix: Titled Tuesday Blitz"]
[Site "Chess.com"]
[Date "2020.07.14"]
[Round "1"]
[White "doons21"]
[Black "MarceloPlaya"]
[Result "1-0"]
[WhiteElo "2625"]
[BlackElo "2312"]
[TimeControl "180+1"]
[EndTime "10:08:13 PDT"]
[Termination "doons21 won on time"]

1. e4 {[%clk 0:03:00.3]} 1... e6 {[%clk 0:02:59.6]} 2. d3 {[%clk 0:02:57.9]}
2... d5 {[%clk 0:02:59.1]} 3. Nd2 {[%clk 0:02:58.3]} 3... Bc5 {[%clk 0:02:56.8]}
4. Ngf3 {[%clk 0:02:46.9]} 4... Nf6 {[%clk 0:02:55.1]} 5. Be2 {[%clk 0:02:47]}
5... O-O {[%clk 0:02:51.3]} 6. O-O {[%clk 0:02:46.5]} 6... Bb6 {[%clk 0:02:48]}
7. a4 {[%clk 0:02:45.7]} 7... c5 {[%clk 0:02:46.7]} 8. c3 {[%clk 0:02:40.7]}
8... Nc6 {[%clk 0:02:44]} 9. Re1 {[%clk 0:02:39.7]} 9... Bc7 {[%clk 0:02:34.3]}
10. Qc2 {[%clk 0:02:36.7]} 10... b6 {[%clk 0:02:18.2]} 11. Bf1 {[%clk
0:02:25.7]} 11... Ba6 {[%clk 0:02:07.2]} 12. g3 {[%clk 0:02:01.5]} 12... dxe4
{[%clk 0:02:01.1]} 13. dxe4 {[%clk 0:02:01.2]} 13... Bxf1 {[%clk 0:02:00.1]} 14.
Nxf1 {[%clk 0:02:01]} 14... Ne5 {[%clk 0:01:55.4]} 15. Nxe5 {[%clk 0:02:00.2]}
15... Bxe5 {[%clk 0:01:54.7]} 16. Ne3 {[%clk 0:01:54.4]} 16... Qe7 {[%clk
0:01:51.4]} 17. Nc4 {[%clk 0:01:54.1]} 17... Bc7 {[%clk 0:01:49.6]} 18. Bg5
{[%clk 0:01:47]} 18... h6 {[%clk 0:01:47.8]} 19. Bxf6 {[%clk 0:01:47]} 19...
Qxf6 {[%clk 0:01:46.2]} 20. e5 {[%clk 0:01:47.3]} 20... Qe7 {[%clk 0:01:42.1]}
21. Qe4 {[%clk 0:01:41.2]} 21... Rfd8 {[%clk 0:01:31.7]} 22. Rad1 {[%clk
0:01:32]} 22... Rxd1 {[%clk 0:01:28.4]} 23. Rxd1 {[%clk 0:01:31.7]} 23... Rd8
{[%clk 0:01:27.2]} 24. Rxd8+ {[%clk 0:01:28.2]} 24... Qxd8 {[%clk 0:01:23.7]}
25. Kg2 {[%clk 0:01:16.2]} 25... Qd5 {[%clk 0:01:22.1]} 26. Kf3 {[%clk 0:01:13]}
26... a6 {[%clk 0:01:13.4]} 27. Qxd5 {[%clk 0:00:41.7]} 27... exd5 {[%clk
0:01:12.8]} 28. Ne3 {[%clk 0:00:42.6]} 28... d4 {[%clk 0:00:49.6]} 29. cxd4
{[%clk 0:00:42.9]} 29... cxd4 {[%clk 0:00:49.1]} 30. Nc4 {[%clk 0:00:38.5]}
30... b5 {[%clk 0:00:44.6]} 31. axb5 {[%clk 0:00:38.2]} 31... axb5 {[%clk
0:00:44]} 32. Nd6 {[%clk 0:00:20]} 32... f6 {[%clk 0:00:30.5]} 33. Ke4 {[%clk
0:00:14.4]} 33... fxe5 {[%clk 0:00:28.8]} 34. Nxb5 {[%clk 0:00:14.6]} 34... Bb6
{[%clk 0:00:23.2]} 35. f3 {[%clk 0:00:11.4]} 35... Kf7 {[%clk 0:00:16.6]} 36.
Nd6+ {[%clk 0:00:11.4]} 36... Ke6 {[%clk 0:00:15.1]} 37. Nc4 {[%clk 0:00:12.3]}
37... Bc7 {[%clk 0:00:14.5]} 38. b4 {[%clk 0:00:12.8]} 38... Kd7 {[%clk
0:00:12.4]} 39. b5 {[%clk 0:00:11.1]} 39... Bb8 {[%clk 0:00:11.9]} 40. h4 {[%clk
0:00:10.3]} 40... g6 {[%clk 0:00:11.5]} 41. g4 {[%clk 0:00:10.2]} 41... Ke7
{[%clk 0:00:11.2]} 42. h5 {[%clk 0:00:10]} 42... gxh5 {[%clk 0:00:10.5]} 43.
gxh5 {[%clk 0:00:10.9]} 43... Kf6 {[%clk 0:00:10.6]} 44. b6 {[%clk 0:00:11.5]}
44... Kg5 {[%clk 0:00:09.6]} 45. b7 {[%clk 0:00:11.4]} 45... Kxh5 {[%clk
0:00:08.4]} 46. Nxe5 {[%clk 0:00:10.3]} 46... Kh4 {[%clk 0:00:07.2]} 47. Nd7
{[%clk 0:00:09]} 47... Bc7 {[%clk 0:00:07.1]} 48. Kxd4 {[%clk 0:00:06]} 48...
Kg3 {[%clk 0:00:06]} 49. Ke4 {[%clk 0:00:05.8]} 49... h5 {[%clk 0:00:05.6]} 50.
Nf6 {[%clk 0:00:06.4]} 50... h4 {[%clk 0:00:04.8]} 51. Nh5+ {[%clk 0:00:06]}
51... Kg2 {[%clk 0:00:03.9]} 52. Nf4+ {[%clk 0:00:03.3]} 52... Kg3 {[%clk
0:00:02.8]} 53. Nd5 {[%clk 0:00:01.8]} 53... Bb8 {[%clk 0:00:01.8]} 54. Ne3
{[%clk 0:00:02]} 1-0